[Event "4th Sinquefield Cup 2016"]
[Site "Saint Louis"]
[Date "2016.08.09"]
[Round "5"]
[White "Svidler, Peter"]
[Black "Nakamura, Hikaru"]
[Result "1/2-1/2"]
[ECO "E63"]
[WhiteElo "2751"]
[BlackElo "2791"]
[Annotator ""]
[PlyCount "82"]
[EventDate "2016.??.??"]
[EventCountry "USA"]
[SourceTitle "playchess.com"]
[Source "ChessBase"]
[TimeControl "40/7200:3600+30"]

1. c4 {(5s)} Nf6 {(12s)} 2. Nc3 {(8s)} g6 {(5s)} 3. Nf3 {(202s)} Bg7 {(18s)} 4. g3 {(11s)} O-O {(27s)}
5. Bg2 {(3s)} d6 {(5s)} 6. O-O {(179s)} Nc6 {(9s)} 7. d4 {(125s)} a6 {(10s)} 8. Re1 {(241s)} Rb8 {(20
s)} 9. Rb1 {(296s)} b5 {(406s)} 10. cxb5 {(26s)} axb5 {(48s)} 11. b4 {(12s)} e6 {(79s)} 12. e4 {(826
s)} Ne7 {(69s)} 13. Bf4 {(662s)} h6 {(323s)} 14. h3 {(304s)} Bb7 {(552s)} 15. g4 {(290s)} g5 {(95s)}
16. Bg3 {(124s)} Ng6 {(5s)} 17. Nd2 {(329s)} Nd7 {(1295s)} 18. Nb3 {(95s)} Ba6 {(1318s)} 19. Na5
{(227s)} Rb6 {(11s)} 20. a4 {(64s)} Nb8 {(308s)} 21. axb5 {(230s)} Bxb5 {(5s)} 22. Nxb5 {(9s)} Rxb5
{(4s)} 23. Bf1 {(35s)} Rb6 {(8s)} 24. b5 {(34s)} c6 {(566s)} 25. Nc4 {(154s)} Rxb5 {(9s)} 26. Rxb5 {(
17s)} cxb5 {(6s)} 27. Nxd6 {(4s)} b4 {(318s)} 28. e5 {(554s)} Nc6 {(11s)} 29. Bc4 {(503s)} Qb6 {(319
s)} 30. d5 {(466s)} Bxe5 {(122s)} 31. Bxe5 {(227s)} Ncxe5 {(9s)} 32. dxe6 {(3s)} fxe6 {(5s)} 33.
Bxe6+ {(9s)} Kh8 {(8s)} 34. Bf5 {(46s)} b3 {(782s)} 35. Qd5 {(215s)} b2 {(58s)} 36. Rb1 {(73s)} Qc7
{(90s)} 37. Bxg6 {(105s)} Qc1+ {(22s)} 38. Kg2 {(86s)} Nxg6 {(3s)} 39. Qd4+ {(5s)} Kg8 {(22s)} 40.
Qd5+ {(0s)} Kh8 {(0s)} 41. Qd4+ {(0s)} Kg8 {(0s)} 1/2-1/2

[Event "4th Sinquefield Cup 2016"]
[Site "Saint Louis"]
[Date "2016.08.09"]
[Round "5"]
[White "Caruana, Fabiano"]
[Black "Vachier-Lagrave, Maxime"]
[Result "1/2-1/2"]
[ECO "B54"]
[WhiteElo "2807"]
[BlackElo "2819"]
[PlyCount "93"]
[EventDate "2016.??.??"]
[EventCountry "USA"]
[SourceTitle "playchess.com"]
[Source "ChessBase"]
[TimeControl "40/7200:3600+30"]

1. e4 {(3s)} c5 {(4s)} 2. Nf3 {(4s)} d6 {(3s)} 3. d4 {(5s)} cxd4 {(4s)} 4. Nxd4
{(5s)} Nf6 {(5s)} 5. f3 {(6s)} Nc6 {(142s)} 6. Nc3 {(45s)} e5 {(16s)} 7. Nb3 {
(5s)} Be7 {(28s)} 8. Be3 {(11s)} Be6 {(138s)} 9. Nd5 {(161s)} Bxd5 {(144s)} 10.
exd5 {(5s)} Nb4 {(6s)} 11. c4 {(134s)} a5 {(134s)} 12. Be2 {(686s)} Na6 {(720s)
} 13. Nd2 {(1066s)} O-O {(293s)} 14. Nb1 {(183s)} Nd7 {(240s)} 15. Qd2 {(159s)}
f5 {( 204s)} 16. Nc3 {(62s)} Bh4+ {(1021s)} 17. g3 {(16s)} f4 {(5s)} 18. Bf2 {
(52s)} Bg5 {(6s)} 19. Qc2 {( 354s)} Nac5 {(1002s)} 20. Kf1 {(1407s)} Qe8 {
(320s)} 21. Re1 {(782s)} e4 {(206s)} 22. Bxc5 {(173s)} Nxc5 {(205s)} 23. Nxe4 {
(46s)} Nxe4 {(11s)} 24. Bd3 {(28s)} fxg3 {(324s)} 25. Bxe4 {[#] (17s)} Qh5 $2 {
( 630s)} ({Black need to play} 25... g2+ {first} 26. Kxg2 {before playing} Qh5
{after which he would be relatively fine.}) 26. Kg2 $1 {(260s)} gxh2 {(4s)} 27.
Rxh2 {(15s)} Bh4 {(4s)} 28. Bxh7+ {(95s)} Kh8 {(5s)} 29. Be4 {(294s)} Rf4 {
(59s)} 30. Kh1 {(320s) and now Black is in seriousn trouble.} Qe5 {(158s)} 31.
Rg1 {(56s)} (31. c5 {was strongest here. The Bh4 is pinned and this would free
the way for White's central pawns.} dxc5 32. Qxc5 Rd8 33. Qb6 Rxd5 34. Qf2 $1 {
The point is that after Rxd5 has been played, Black suddenly finds himself
with the bishop on h4 attacked, and if the queen comes to its rescue, the rook
is hanging on d5.} Rd6 35. Bg6 {and} Qxe1+ 36. Qxe1 {is forced due to the back
rank threats.}) 31... g5 {(45s)} 32. Qc3 $2 {(366s)} ({Again} 32. c5 {would do
the job.}) 32... Qxc3 {(12s)} 33. bxc3 {(3s)} Kg7 {(5s)} 34. Rb1 {(101s)} Rf7 {
(176s)} 35. Rb6 {(77s)} Ra6 {(221s)} 36. Rhb2 $2 {(81s)} ({White really needed
to keep the rooks on the board to avoid the increase in drawishness due to the
opposite-colored bishops.} 36. Rb5) 36... Rxb6 {(7s)} 37. Rxb6 {(3s)} Bf2 {
(102s)} 38. Rxd6 {(77s)} Rf6 $1 {(4s) White cannot avoid the exchange of the
rooks and thus the dreaded opposite-colored bishop ending is inevitable.} 39.
Rd8 {(17 s)} Rf8 {(4s)} 40. Rd6 {(0s)} Rf6 {(0s)} 41. Rd8 {(84s)} Rf8 {(0s)}
42. Rxf8 {(3s)} Kxf8 {(0s)} 43. d6 {(16s)} Bc5 {(136s)} 44. d7 {(14s)} Ke7 {
(4s)} 45. Bf5 {(16s)} Be3 {(50s)} 46. Kg2 {(7s)} Bd2 {(114s)} 47. Kf2 {(37s)}
1/2-1/2

[Event "4th Sinquefield Cup 2016"]
[Site "Saint Louis"]
[Date "2016.08.11"]
[Round "6"]
[White "Aronian, Levon"]
[Black "Vachier-Lagrave, Maxime"]
[Result "0-1"]
[ECO "A04"]
[WhiteElo "2792"]
[BlackElo "2819"]
[Annotator ""]
[PlyCount "98"]
[EventDate "2016.??.??"]
[EventCountry "USA"]
[SourceTitle "playchess.com"]
[Source "ChessBase"]
[TimeControl "40/7200:3600+30"]

1. Nf3 {(13s)} c5 {(5s)} 2. c4 {(8s)} Nc6 {(3s)} 3. Nc3 {(8s)} e5 {(3s)} 4. g3 {(8s)} g6 {(11s)} 5. Bg2
{(9s)} Bg7 {(4s)} 6. O-O {(9s)} Nge7 {(45s)} 7. a3 {(11s)} O-O {(114s)} 8. b4 {(128s)} d5 {(193s)} 9.
cxd5 {(272s)} Nxd5 {(38s)} 10. Ng5 {(180s)} Nc7 {(298s)} 11. Nge4 {(112s)} c4 {(621s)} 12. d3 {(
1375s)} cxd3 {(361s)} 13. Bg5 {(14s)} f6 {(146s)} 14. Be3 {(11s)} f5 {(527s)} 15. Bg5 {(824s)} Qd4
{(837s)} 16. Be3 {(12s)} Qd8 {(5s)} 17. Bg5 {(4s)} Qd7 {(560s)} 18. Nc5 {(14s)} dxe2 {(15s)} 19.
Nxe2 {(573s)} Qxd1 {(80s)} 20. Rfxd1 {(702s)} f4 {(218s)} 21. gxf4 {(185s)} h6 {(160s)} 22. b5 {(
1335s)} Nxb5 {(88s)} 23. Rab1 {(57s)} Nxa3 {(201s)} 24. Rb3 {(56s)} hxg5 {(531s)} 25. Rxa3 {(124s)}
exf4 {(296s)} 26. Bd5+ {(299s)} Kh7 {(147s)} 27. Ne4 {(26s)} Kh6 {(484s)} 28. Nd6 {(304s)} Bf6 {(
28s)} 29. Bxc6 {(74s)} bxc6 {(75s)} 30. Nxc8 {(4s)} Raxc8 {(11s)} 31. Rd7 {(18s)} g4 {(112s)} 32.
Nxf4 {(17s)} Rcd8 {(291s)} 33. Raxa7 {(97s)} Rxd7 {(7s)} 34. Rxd7 {(4s)} c5 {(6s)} 35. Ne6 {(276s)}
Rc8 {(7s)} 36. Rc7 {(20s)} Rxc7 {(10s)} 37. Nxc7 {(1s)} c4 {(66s)} 38. Kf1 {(7s)} Kg5 {(115s)} 39.
Nd5 {(3s)} Be5 {(33s)} 40. Ke2 {(0s)} Bxh2 {(0s)} 41. Ke3 {(426s)} Be5 {(159s)} 42. Nb4 {(333s)} Bd6
{(137s)} 43. Nd5 {(116s)} Bc5+ {(6s)} 44. Ke2 {(3s)} Kf5 {(8s)} 45. Nc3 {(19s)} Ke5 {(38s)} 46. Nb5
{(53s)} Bb4 {(41s)} 47. Ke3 {(24s)} g5 {(11s)} 48. Nc7 {(23s)} Bc5+ {(16s)} 49. Ke2 {(7s)} c3 {(42s)}
0-1

[Event "4th Sinquefield Cup 2016"]
[Site "Saint Louis"]
[Date "2016.08.11"]
[Round "6"]
[White "Giri, Anish"]
[Black "Anand, Viswanathan"]
[Result "1/2-1/2"]
[ECO "A14"]
[WhiteElo "2769"]
[BlackElo "2770"]
[Annotator "AS"]
[PlyCount "81"]
[EventDate "2016.??.??"]
[EventCountry "USA"]
[SourceTitle "playchess.com"]
[Source "ChessBase"]
[TimeControl "40/7200:3600+30"]

1. c4 {(2s)} c5 {(11s)} 2. Nf3 {(71s)} Nf6 {(13s)} 3. Nc3 {(137s)} Nc6 {(15s)}
4. g3 {(3s)} d5 {(15s)} 5. cxd5 {(16s)} Nxd5 {(8s)} 6. Bg2 {(2s)} e6 {(16s)} 7.
O-O {(7s)} Be7 {(5s)} 8. d4 {(3s)} O-O {(10s)} 9. e4 {(2s)} Ndb4 {(71s)} 10.
dxc5 {(8s)} Bxc5 {(30s)} 11. e5 {(3s)} Bb6 {(99s)} 12. a3 {(13s)} Nd5 {(133s)}
13. Qe2 {(164s)} Bd7 {(834s)} 14. Rd1 {(661s)} Nxc3 {(593s)} 15. bxc3 {(12s)}
Qc7 {(56s)} 16. a4 {(1450s)} Ne7 {(707s)} 17. Ng5 {(898s)} Bc6 {(909s)} 18. Ba3
{(257s)} Bxg2 {(185s)} 19. Kxg2 {(76s)} Bc5 {(104s)} 20. Qe4 {(727s)} Ng6 {
(189s)} 21. Bxc5 {(49s)} Qxc5 {(19s)} 22. Nf3 {(12 s)} b6 {(189s)} 23. Rd7 {
(179s)} Qxc3 {(382s)} 24. Rad1 {(36s)} Rac8 {(190s)} 25. Rxa7 {[#] (156s)} Rc4
$2 {(524s)} 26. Qb7 {(98s)} Rcc8 {(493s)} ({Upon playing ...Rc4, Anand had
planned on} 26... Nxe5 27. Nxe5 (27. Ra8 $1 {was the move Anand missed in his
earlier analysis, but thankfully for his sanity, he caught his mistake in time,
and avoided an immediate defeat.} g5 28. Rxf8+ Kxf8 29. Qb8+ {with a double
attack on the king and the knight.} Kg7 30. Nxe5 {and it would be game over.})
27... Qxe5 28. Rd7 {and he would actually be fine.}) 27. Re1 {(836s)} Rb8 {
(309s)} 28. Qe4 {(54s)} Qc5 {(163s)} 29. Rb1 {(58s)} b5 {(499s)} 30. Ra5 {(31s)
} Qc4 {(5s)} 31. Qxc4 {(209s)} bxc4 {(5s)} 32. Rxb8 {(27 s)} Rxb8 {(6s)} 33.
Rc5 {(5s)} Rb4 {(5s)} 34. a5 {(20s)} Ra4 {(28s)} 35. Nd2 {(405s)} c3 {(23s)}
36. Rc8+ {(14s)} Nf8 {(10s)} 37. Nb3 {(26s)} g5 {(123s)} 38. Rxc3 {(423s)} Ra3
{(50s)} 39. Kf3 {(46s)} Ng6 {[#] (10s) That White stands better here, is
unquestionable. This doesn't mean it the win is just a matter of technique,
but that the burden of holding is very much on Black's shoulders.} 40. Rc8+ $2
{(0s) After this though, there is nothing for White anymore.} Kg7 {(0s)} 41.
Rc3 {(163s)} 1/2-1/2

[Event "4th Sinquefield Cup 2016"]
[Site "Saint Louis"]
[Date "2016.08.11"]
[Round "6"]
[White "Ding, Liren"]
[Black "Svidler, Peter"]
[Result "1-0"]
[ECO "D71"]
[WhiteElo "2755"]
[BlackElo "2751"]
[Annotator ""]
[PlyCount "117"]
[EventDate "2016.??.??"]
[EventCountry "USA"]
[SourceTitle "playchess.com"]
[Source "ChessBase"]
[TimeControl "40/7200:3600+30"]

1. d4 {(4s)} Nf6 {(7s)} 2. c4 {(8s)} g6 {(3s)} 3. g3 {(17s)} c5 {(389s)} 4. d5 {(113s)} Bg7 {(117s)} 5.
Bg2 {(18s)} O-O {(15s)} 6. Nc3 {(4s)} d6 {(48s)} 7. Nh3 {(14s)} a6 {(224s)} 8. a4 {(292s)} e6 {(197s)}
9. Nf4 {(23s)} exd5 {(55s)} 10. Nfxd5 {(6s)} Nxd5 {(6s)} 11. Nxd5 {(6s)} Nc6 {(84s)} 12. O-O {(8s)}
Re8 {(190s)} 13. Ra2 {(895s)} Rb8 {(732s)} 14. b3 {(1150s)} b5 {(1046s)} 15. axb5 {(157s)} axb5 {(
6s)} 16. cxb5 {(33s)} Nd4 {(433s)} 17. b6 {(51s)} Be6 {(40s)} 18. e3 {(457s)} Nb5 {(295s)} 19. Bd2
{(6s)} Bxd5 {(122s)} 20. Bxd5 {(115s)} Qxb6 {(36s)} 21. Qf3 {(6s)} Re7 {(316s)} 22. Ba5 {(422s)} Qa7
{(8s)} 23. Bd8 {(6s)} Rxd8 {(5s)} 24. Rxa7 {(5s)} Rxa7 {(5s)} 25. Bc4 {(211s)} Nc3 {(149s)} 26. Qc6
{(183s)} d5 {(156s)} 27. Bd3 {(20s)} Ra3 {(274s)} 28. Qb6 {(431s)} Rc8 {(115s)} 29. Kg2 {(114s)} Bf8
{(341s)} 30. Rc1 {(468s)} Na2 {(62s)} 31. Ra1 {(164s)} Bg7 {(457s)} 32. Rb1 {(132s)} Nb4 {(83s)} 33.
Bb5 {(8s)} Bf8 {(308s)} 34. e4 {(485s)} Raa8 {(113s)} 35. Bf1 {(164s)} Rab8 {(199s)} 36. Qa7 {(140
s)} Ra8 {(102s)} 37. Qb7 {(179s)} Rab8 {(18s)} 38. Qa7 {(71s)} Ra8 {(8s)} 39. Qd7 {(235s)} c4 {(136s)}
40. bxc4 {(0s)} dxe4 {(0s)} 41. Qb7 {(1450s)} Nc6 {(588s)} 42. Re1 {(86s)} Rab8 {(95s)} 43. Qd7 {(
37s)} Ne5 {(54s)} 44. Qd5 {(6s)} Rc5 {(42s)} 45. Qxe4 {(7s)} Rbc8 {(12s)} 46. Rc1 {(32s)} R8c7 {(113
s)} 47. Be2 {(248s)} Rc8 {(92s)} 48. f4 {(220s)} Nd7 {(49s)} 49. Ra1 {(252s)} Nf6 {(910s)} 50. Qf3
{(135s)} Re8 {(156s)} 51. Ra8 {(187s)} Re6 {(15s)} 52. Qd3 {(105s)} Kg7 {(44s)} 53. Bf3 {(30s)} Rd6
{(177s)} 54. Qc3 {(40s)} h5 {(62s)} 55. h3 {(179s)} Kg8 {(386s)} 56. Qb4 {(393s)} Nd7 {(44s)} 57.
Bd5 {(35s)} Rb6 {(60s)} 58. Qd2 {(108s)} Rc7 {(65s)} 59. f5 {(63s)} 1-0

[Event "4th Sinquefield Cup 2016"]
[Site "Saint Louis"]
[Date "2016.08.11"]
[Round "6"]
[White "Nakamura, Hikaru"]
[Black "Caruana, Fabiano"]
[Result "1/2-1/2"]
[ECO "A61"]
[WhiteElo "2791"]
[BlackElo "2807"]
[Annotator ""]
[PlyCount "117"]
[EventDate "2016.??.??"]
[EventCountry "USA"]
[SourceTitle "playchess.com"]
[Source "ChessBase"]
[TimeControl "40/7200:3600+30"]

1. d4 {(6s)} Nf6 {(5s)} 2. c4 {(5s)} e6 {(3s)} 3. Nf3 {(16s)} c5 {(5s)} 4. d5 {(21s)} d6 {(6s)} 5. Nc3
{(7s)} exd5 {(4s)} 6. cxd5 {(7s)} g6 {(3s)} 7. Bf4 {(12s)} Bg7 {(14s)} 8. Qa4+ {(28s)} Bd7 {(5s)} 9.
Qb3 {(11s)} b5 {(6s)} 10. Bxd6 {(11s)} Qb6 {(6s)} 11. Be5 {(14s)} O-O {(100s)} 12. e3 {(14s)} c4 {(6s)}
13. Qd1 {(40s)} b4 {(6s)} 14. Nb1 {(28s)} Rc8 {(60s)} 15. Nbd2 {(34s)} Bb5 {(88s)} 16. a4 {(111s)}
bxa3 {(45s)} 17. Rxa3 {(16s)} Bf8 {(42s)} 18. Bd4 {(562s)} Qb7 {(32s)} 19. Ra1 {(851s)} Nxd5 {(171
s)} 20. Be2 {(7s)} Nc6 {(1098s)} 21. O-O {(17s)} Nxd4 {(64s)} 22. Nxd4 {(18s)} a6 {(62s)} 23. Bf3 {(
945s)} Rd8 {(487s)} 24. Ne4 {(854s)} Qb6 {(91s)} 25. Nc3 {(130s)} Nxc3 {(6s)} 26. bxc3 {(3s)} Rac8
{(72s)} 27. Qc2 {(86s)} Qf6 {(202s)} 28. Rfb1 {(144s)} Rc5 {(429s)} 29. Bd1 {(262s)} Bg7 {(324s)}
30. Qe2 {(599s)} Qe7 {(284s)} 31. Rb2 {(17s)} Qe8 {(286s)} 32. Rba2 {(43s)} h5 {(195s)} 33. Ba4 {(
376s)} Bxa4 {(194s)} 34. Rxa4 {(9s)} Bxd4 {(22s)} 35. cxd4 {(11s)} Rxd4 {(4s)} 36. exd4 {(185s)}
Qxe2 {(9s)} 37. dxc5 {(2s)} c3 {(191s)} 38. Rc1 {(13s)} c2 {(586s)} 39. Rd4 {(212s)} Qb5 {(41s)} 40.
Rd2 {(0s)} Qxc5 {(0s)} 41. Rdxc2 {(454s)} Qa3 {(38s)} 42. h4 {(336s)} a5 {(228s)} 43. g3 {(805s)} a4
{(132s)} 44. Re1 {(43s)} Qb3 {(592s)} 45. Rce2 {(19s)} Qc3 {(381s)} 46. Re3 {(84s)} Qb2 {(31s)} 47.
R1e2 {(85s)} Qb4 {(378s)} 48. Kh2 {(485s)} Kg7 {(115s)} 49. Rf3 {(460s)} g5 {(395s)} 50. hxg5 {(
204s)} h4 {(35s)} 51. Ree3 {(140s)} hxg3+ {(37s)} 52. Kxg3 {(62s)} Kg6 {(60s)} 53. Kh2 {(328s)} Qc4
{(101s)} 54. Rg3 {(21s)} Qf1 {(72s)} 55. Ref3 {(75s)} Qc4 {(82s)} 56. Rf6+ {(443s)} Kg7 {(5s)} 57.
Rff3 {(2s)} Kg6 {(6s)} 58. Rf6+ {(4s)} Kg7 {(2s)} 59. Rff3 {(222s)} 1/2-1/2

[Event "4th Sinquefield Cup 2016"]
[Site "Saint Louis"]
[Date "2016.08.12"]
[Round "7"]
[White "Vachier-Lagrave, Maxime"]
[Black "Nakamura, Hikaru"]
[Result "1/2-1/2"]
[ECO "C67"]
[WhiteElo "2819"]
[BlackElo "2791"]
[PlyCount "70"]
[EventDate "2016.??.??"]
[EventCountry "USA"]
[SourceTitle "playchess.com"]
[Source "ChessBase"]
[TimeControl "40/7200:3600+30"]

1. e4 {(4s)} e5 {(6s)} 2. Nf3 {(3s)} Nc6 {(6s)} 3. Bb5 {(2s)} Nf6 {(23s)} 4.
O-O {(4s)} Nxe4 {(7s)} 5. d4 {(1s)} Nd6 {(7s)} 6. Bxc6 {(3s)} dxc6 {(6s)} 7.
dxe5 {(3s)} Nf5 {(9s)} 8. Qxd8+ {(4s)} Kxd8 {(6s)} 9. h3 {(3s)} Ke8 {(17s)} 10.
Nc3 {(4s)} h5 {(4s)} 11. Bf4 {(22s)} Be7 {(9s)} 12. Rad1 {(20s)} Be6 {(7 s)}
13. Ng5 {(4s)} Rh6 {(10s)} 14. Rfe1 {(4s)} Bb4 {(16s)} 15. g4 {(18s)} hxg4 {
(19s)} 16. hxg4 {(3s)} Ne7 {(7s)} 17. f3 {(6s)} Bxc3 {(23s)} 18. bxc3 {(3s)}
Nd5 {(6s)} 19. Bd2 {(5s)} Nb6 {(6s)} 20. Nxe6 {(148s)} Rxe6 {(12s)} 21. Kf2 {
(103s)} Rd8 {(459s)} 22. Bg5 {(10s)} Rxd1 {(1242s)} 23. Rxd1 {(8s)} Nd7 {(10s)}
24. f4 {(5s)} f6 {(23s)} 25. exf6 {(25s)} gxf6 {(10s)} 26. Bh4 {(449s)} c5 {
(900s)} 27. Kf3 {(427s)} Ra6 {(298s)} 28. Ke4 {(127s)} Nf8 {(54s)} 29. Kf5 {
(1545s)} Kf7 {(30s)} 30. c4 {(132s)} Re6 {(304s)} 31. g5 {(1165s)} Ng6 {(23s)}
32. Rd7+ {(32s)} Re7 {(10s)} 33. Rxe7+ {(4s)} Nxe7+ {(8s)} 34. Ke4 {(5s)} f5+ {
(22s)} 35. Ke3 {(36s)} Ng6 {(326 Ke4s)} 1/2-1/2

[Event "4th Sinquefield Cup 2016"]
[Site "Saint Louis"]
[Date "2016.08.12"]
[Round "7"]
[White "Anand, Viswanathan"]
[Black "Aronian, Levon"]
[Result "1/2-1/2"]
[ECO "C54"]
[WhiteElo "2770"]
[BlackElo "2792"]
[Annotator ""]
[PlyCount "68"]
[EventDate "2016.??.??"]
[EventCountry "USA"]
[SourceTitle "playchess.com"]
[Source "ChessBase"]
[TimeControl "40/7200:3600+30"]

1. e4 {(5s)} e5 {(4s)} 2. Nf3 {(6s)} Nc6 {(7s)} 3. Bc4 {(9s)} Bc5 {(7s)} 4. c3 {(10s)} Nf6 {(5s)} 5. d3
{(6s)} O-O {(6s)} 6. Nbd2 {(25s)} a6 {(93s)} 7. a4 {(187s)} d6 {(28s)} 8. O-O {(32s)} Ba7 {(195s)} 9.
h3 {(83s)} Ne7 {(155s)} 10. Re1 {(138s)} Ng6 {(35s)} 11. Bb3 {(123s)} Re8 {(476s)} 12. d4 {(666s)}
h6 {(400s)} 13. Bc2 {(177s)} c6 {(156s)} 14. Nf1 {(83s)} d5 {(508s)} 15. Nxe5 {(620s)} Nxe5 {(4s)}
16. dxe5 {(10s)} Nxe4 {(3s)} 17. Bxe4 {(345s)} dxe4 {(16s)} 18. Qxd8 {(7s)} Rxd8 {(5s)} 19. Ng3 {(
18s)} Bb8 {(945s)} 20. Be3 {(1149s)} Bxe5 {(5s)} 21. Nxe4 {(123s)} Bc7 {(30s)} 22. a5 {(43s)} Bf5 {(
553s)} 23. Nc5 {(126s)} Rab8 {(20s)} 24. g4 {(354s)} Bc2 {(89s)} 25. Rac1 {(39s)} Bg6 {(337s)} 26.
b4 {(270s)} Bd6 {(385s)} 27. Na4 {(111s)} f6 {(265s)} 28. Ba7 {(368s)} Ra8 {(48s)} 29. Bc5 {(34s)}
Be5 {(141s)} 30. Nb6 {(218s)} Rab8 {(8s)} 31. Nc4 {(119s)} Bf4 {(208s)} 32. Be3 {(25s)} Bxe3 {(184
s)} 33. Rxe3 {(14s)} b5 {(377s)} 34. axb6 {(481s)} Bf7 {(10s)} 1/2-1/2

[Event "4th Sinquefield Cup 2016"]
[Site "Saint Louis"]
[Date "2016.08.12"]
[Round "7"]
[White "Svidler, Peter"]
[Black "So, Wesley"]
[Result "1/2-1/2"]
[ECO "A20"]
[WhiteElo "2751"]
[BlackElo "2771"]
[Annotator ""]
[PlyCount "61"]
[EventDate "2016.??.??"]
[EventCountry "USA"]
[SourceTitle "playchess.com"]
[Source "ChessBase"]
[TimeControl "40/7200:3600+30"]

1. c4 {(3s)} e5 {(13s)} 2. g3 {(35s)} Nf6 {(6s)} 3. Bg2 {(7s)} d5 {(3s)} 4. cxd5 {(5s)} Nxd5 {(4s)} 5.
Nf3 {(346s)} Nc6 {(6s)} 6. O-O {(6s)} Nb6 {(4s)} 7. Nc3 {(488s)} Be7 {(13s)} 8. a3 {(114s)} O-O {(17s)}
9. b4 {(3s)} Be6 {(7s)} 10. d3 {(9s)} a5 {(70s)} 11. b5 {(10s)} Nd4 {(5s)} 12. Bb2 {(9s)} Nb3 {(57s)}
13. Rb1 {(9s)} f6 {(4s)} 14. Nd2 {(22s)} Nxd2 {(6s)} 15. Qxd2 {(5s)} Nc4 {(6s)} 16. Qc1 {(437s)}
Nxb2 {(5s)} 17. Qxb2 {(4s)} Rb8 {(5s)} 18. e3 {(806s)} f5 {(662s)} 19. Na4 {(737s)} Bd6 {(130s)} 20.
b6 {(109s)} c6 {(44s)} 21. d4 {(10s)} Qe7 {(1038s)} 22. Nc5 {(333s)} exd4 {(163s)} 23. Nxe6 {(600s)}
Qxe6 {(34s)} 24. exd4 {(2s)} f4 {(19s)} 25. d5 {(255s)} cxd5 {(8s)} 26. Qb3 {(68s)} Kh8 {(9s)} 27.
Bxd5 {(64s)} Qf6 {(152s)} 28. Qb5 {(914s)} Bxa3 {(217s)} 29. Qxa5 {(34s)} Bb2 {(5s)} 30. Bf3 {(98s)}
Ra8 {(479s)} 31. Qd5 {(174s)} 1/2-1/2

[Event "4th Sinquefield Cup 2016"]
[Site "Saint Louis"]
[Date "2016.08.12"]
[Round "7"]
[White "Topalov, Veselin"]
[Black "Giri, Anish"]
[Result "1/2-1/2"]
[ECO "A20"]
[WhiteElo "2761"]
[BlackElo "2769"]
[Annotator ""]
[PlyCount "90"]
[EventDate "2016.??.??"]
[EventCountry "USA"]
[SourceTitle "playchess.com"]
[Source "ChessBase"]
[TimeControl "40/7200:3600+30"]

1. c4 {(5s)} e5 {(2s)} 2. d3 {(13s)} Bb4+ {(271s)} 3. Nd2 {(23s)} Nf6 {(206s)} 4. Ngf3 {(27s)} Nc6 {(
12s)} 5. a3 {(35s)} Bxd2+ {(8s)} 6. Qxd2 {(13s)} d5 {(342s)} 7. cxd5 {(64s)} Qxd5 {(20s)} 8. e4 {(75
s)} Qd6 {(55s)} 9. h3 {(126s)} a5 {(271s)} 10. Be2 {(357s)} Nd7 {(111s)} 11. Qc2 {(427s)} Nc5 {(129s)}
12. Be3 {(16s)} Ne6 {(26s)} 13. O-O {(354s)} O-O {(75s)} 14. b3 {(267s)} Rd8 {(92s)} 15. Rfc1 {(
718s)} Bd7 {(170s)} 16. Qb2 {(67s)} Be8 {(770s)} 17. b4 {(389s)} axb4 {(183s)} 18. axb4 {(9s)} Rxa1
{(11s)} 19. Qxa1 {(511s)} b5 {(818s)} 20. Qa3 {(1339s)} Qxb4 {(579s)} 21. Qxb4 {(33s)} Nxb4 {(1s)}
22. Nxe5 {(32s)} f6 {(13s)} 23. Bg4 {(590s)} Nd4 {(60s)} 24. Bxd4 {(69s)} Rxd4 {(10s)} 25. Nf3 {(
16s)} Nxd3 {(88s)} 26. Rxc7 {(90s)} Rd6 {(607s)} 27. Rb7 {(114s)} h5 {(102s)} 28. Bf5 {(658s)} g6 {(
28s)} 29. e5 {(20s)} Nxe5 {(62s)} 30. Nxe5 {(5s)} gxf5 {(833s)} 31. Rb8 {(5s)} Kf8 {(5s)} 32. Ng6+
{(9s)} Kf7 {(7s)} 33. Nf4 {(5s)} h4 {(52s)} 34. g3 {(33s)} Bc6 {(94s)} 35. gxh4 {(55s)} Rd4 {(14s)} 36.
Rb6 {(144s)} Rc4 {(342s)} 37. h5 {(111s)} Kg7 {(1s)} 38. Kh2 {(101s)} b4 {(252s)} 39. Nd3 {(107s)}
Rc3 {(278s)} 40. Nxb4 {(0s)} Be4 {(0s)} 41. Rd6 {(179s)} Rf3 {(490s)} 42. Nd5 {(63s)} Rxf2+ {(126s)}
43. Kg3 {(16s)} Rf3+ {(29s)} 44. Kh4 {(10s)} Bxd5 {(17s)} 45. Rxd5 {(6s)} Kh6 {(13s)} 1/2-1/2